lending/lending_fUSD_20240219
["ID","MTS","AMOUNT","RATE_DAILY","PERIOD"]
[314430447,1708337443704,-1029.00275973,0.00040417,2]
[314430448,1708337443714,-20490.85865631,0.00040417,2]
[314430449,1708337443723,-2500.0,0.00040417,2]
[314430450,1708337443732,-558.82744767,0.00040417,2]
[314430451,1708337443741,-26810.31161461,0.00040417,2]
[314430452,1708337443750,-2295.40719132,0.00040417,2]
[314430453,1708337443759,-232.21794424,0.00040417,2]
[314430454,1708337443768,-5855.62724805,0.00040417,13]
[314430455,1708337443777,-1585.03931663,0.00040417,2]
[314430456,1708337443786,-519.99440484,0.00040417,2]
[314430457,1708337443795,-196.92349624,0.00040417,30]
[314430458,1708337443805,-10125.40349438,0.00040417,2]
[314430459,1708337443814,-430230.69659374,0.00040417,2]
[314430460,1708337443823,-880.53555552,0.00040417,2]
[314430461,1708337443832,-26609.8900247,0.00040417,2]
[314430462,1708337443842,-9196.26175606,0.00040417,2]
[314430463,1708337443851,-464.68543883,0.00040417,2]
[314430464,1708337443860,-43614.01952172,0.00040417,4]
[314430465,1708337443870,-1520.80319271,0.00040417,2]
[314430466,1708337443878,-183.84887362,0.00040417,7]
[314430467,1708337443888,-58384.92709626,0.00040417,10]
[314430468,1708337443897,-14683.30379394,0.00040417,2]
[314430469,1708337443906,-21207.16634062,0.00040417,2]
[314430470,1708337443916,-229.65443807,0.00040417,2]
[314430471,1708337443925,-2055.11029045,0.00040417,2]
[314430472,1708337443934,-389.67774764,0.00040417,2]
[314430473,1708337443944,-528.35272024,0.00040417,2]
[314430474,1708337443954,-13492.60825235,0.00040417,2]
[314430475,1708337443963,-711.21686559,0.00040417,120]
[314430476,1708337443972,-152.11340764,0.00040417,60]
[314430477,1708337443981,-1905.69670694,0.00040417,120]
[314430478,1708337443990,-351.46945725,0.00040417,2]
[314430479,1708337443998,-587.54169109,0.00040417,2]
[314430480,1708337444007,-9415.08193759,0.00040417,2]
[314430481,1708337444016,-171.25732708,0.00040417,120]
[314430482,1708337444025,-153.6795462,0.00040417,30]
[314430483,1708337444034,-251.20091056,0.00040417,120]
[314430484,1708337444044,-34815.37034219,0.00040417,2]
[314430485,1708337444053,-1586.356122,0.00040417,30]
[314430486,1708337444062,-1281.303789,0.00040417,2]
[314430487,1708337444071,-153.30983069,0.00040417,60]
[314430488,1708337444080,-151.0,0.00040417,2]
[314430489,1708337444089,-151.0,0.00040417,14]
[314430490,1708337444099,-151.0,0.00040417,14]
[314430491,1708337444108,-151.0,0.00040417,14]
[314430492,1708337444117,-151.0,0.00040417,3]
[314430493,1708337444126,-215.400571,0.00040417,14]
[314430494,1708337444136,-151.0,0.00040417,14]
[314430495,1708337444145,-151.0,0.00040417,14]
[314430496,1708337444154,-151.0,0.00040417,14]
[314430497,1708337444163,-151.0,0.00040417,14]
[314430498,1708337444174,-151.0,0.00040417,14]
[314430499,1708337444183,-151.0,0.00040417,14]
[314430500,1708337444194,-210.737305,0.00040417,14]
[314430501,1708337444203,-151.0,0.00040417,14]
[314430502,1708337444213,-151.0,0.00040417,14]
[314430503,1708337444224,-151.0,0.00040417,14]
[314430504,1708337444234,-151.0,0.00040417,14]
[314430505,1708337444243,-151.0,0.00040417,14]
[314430506,1708337444252,-151.0,0.00040417,14]
[314430507,1708337444262,-151.0,0.00040417,14]
[314430508,1708337444273,-151.0,0.00040417,14]
[314430509,1708337444283,-4470.718518,0.00040417,14]
[314430510,1708337444292,-3083.2882899,0.00040417,14]
[314430516,1708337446219,-187.53587002,0.0003877,2]
[314430517,1708337446231,-1387.4302281,0.00040417,14]
[314430519,1708337446241,-151.0,0.00040417,14]
[314430521,1708337446250,-601.137442,0.00040417,14]
[314430523,1708337446260,-601.137442,0.00040417,14]
[314430525,1708337446270,-151.0,0.00040417,7]
[314430527,1708337446279,-151.0,0.00040417,14]
[314430528,1708337446288,-151.0,0.00040417,14]
[314430529,1708337446297,-151.0,0.00040417,14]
[314430530,1708337446307,-151.0,0.00040417,14]
[314430531,1708337446317,-407.33244,0.00040417,14]
[314430532,1708337446326,-407.33244,0.00040417,14]
[314430533,1708337446335,-151.0,0.00040417,14]
[314430534,1708337446344,-151.0,0.00040417,14]
[314430535,1708337446353,-151.0,0.00040417,14]
[314430536,1708337446362,-151.0,0.00040417,14]
[314430537,1708337446371,-369.400232,0.00040417,14]
[314430538,1708337446380,-151.0,0.00040417,14]
[314430539,1708337446389,-369.400232,0.00040417,14]
[314430540,1708337446398,-151.0,0.00040417,14]
[314430541,1708337446407,-3717.478988,0.00040417,14]
[314430542,1708337446416,-3717.478988,0.00040417,14]
[314430543,1708337446426,-151.0,0.00040417,14]
[314430544,1708337446435,-151.0,0.00040417,14]
[314430545,1708337446445,-151.0,0.00040417,14]
[314430546,1708337446455,-151.0,0.00040417,14]
[314430547,1708337446464,-288.292608,0.00040417,14]
[314430548,1708337446473,-151.0,0.00040417,14]
[314430549,1708337446482,-975.51352,0.00040417,14]
[314430550,1708337446492,-975.51352,0.00040417,14]
[314430551,1708337446501,-307.274133,0.00040417,14]
[314430552,1708337446510,-307.274133,0.00040417,14]
[314430553,1708337446520,-178.442439,0.00040417,14]
[314430554,1708337446529,-178.442439,0.00040417,14]
[314430555,1708337446539,-501.165628,0.00040417,14]
[314430556,1708337446548,-151.0,0.00040417,14]
[314430557,1708337446558,-501.165628,0.00040417,14]
[314430558,1708337446567,-464.816021,0.00040417,14]
[314430559,1708337446576,-4941.845,0.00040417,14]
[314430560,1708337446585,-464.816021,0.00040417,14]
[314430561,1708337446594,-393.69823718,0.00040417,14]
[314430564,1708337446643,-318.11350482,0.00040417,14]
[314430566,1708337446653,-151.0,0.00040417,14]
[314430568,1708337446662,-4941.845,0.00040417,14]
[314430570,1708337446671,-711.811742,0.00040417,14]
[314430572,1708337446680,-151.0,0.00040417,14]
[314430574,1708337446690,-1000.0,0.00040443,2]
[314430576,1708337446700,-151.0,0.00040542,14]
[314430578,1708337446709,-151.0,0.00040542,14]
[314430580,1708337446719,-158.002925,0.00040548,14]
[314430582,1708337446729,-1000.0,0.000406,15]
[314430584,1708337446738,-150.0,0.00040618,2]
[314430586,1708337446747,-177.53,0.0004071,2]
[314430588,1708337446756,-589.14,0.00040733,2]
[314430590,1708337446766,-1000.0,0.000408,4]
[314430592,1708337446775,-1000.0,0.000409,15]
[314430593,1708337446785,-1250.0,0.00040991,2]
[314430596,1708337446794,-1377.07229806,0.00041,5]
[314430598,1708337446804,-787.60191153,0.00041028,5]
[314430599,1708337446814,-2251.74554326,0.00041095,2]
[314430601,1708337446823,-176.21,0.00041096,2]
[314430604,1708337446832,-3143.6755447,0.00041185,3]
[314430605,1708337446842,-1000.0,0.000412,5]
[314430606,1708337446852,-757.12,0.00041238,2]
[314430607,1708337446861,-5608.51421379,0.00041248,15]
[314430608,1708337446870,-177.53,0.00041258,2]
[314430609,1708337446879,-158.002925,0.0004137,14]
[314430610,1708337446887,-150.0,0.00041384,2]
[314430611,1708337446896,-8144.46826329,0.00041465,2]
[314430612,1708337446915,-68.26287171,0.00041465,2]
[314430613,1708337446924,-2931.58974475,0.00041524,2]
[314430614,1708337446945,-324.07101713,0.00041524,2]
[314430615,1708337446957,-2544.33923812,0.00041524,2]
[314430616,1708337446967,-1500.0,0.00041539,2]
[314430617,1708337446976,-200.0,0.000416,15]
[314430618,1708337446985,-893.2522694,0.000417,7]
[314430619,1708337446994,-177.53,0.00041806,2]
[314430620,1708337447004,-23786.37849248,0.000419,4]
[314430621,1708337447016,-1095.53402601,0.000419,4]
[314430622,1708337447031,-904.64662748,0.000419,4]
[314430623,1708337447042,-691.32702004,0.000419,4]
[314430624,1708337447054,-1866.60714684,0.000419,4]
[314430625,1708337447069,-276.90558802,0.000419,4]
[314430626,1708337447080,-3017.77944775,0.000419,4]
[314430627,1708337447092,-2765.57331738,0.000419,4]
[314430628,1708337447103,-2522.73223,0.000419,4]
[314430629,1708337447114,-509.94462199,0.000419,4]
[314430630,1708337447366,-93726.82765462,0.000419,4]
[314430631,1708337447378,-377.50591219,0.000419,4]
[314430632,1708337447389,-362.84292556,0.000419,4]
[314430633,1708337602702,-211.258198,0.00038551,7]
[314430634,1708337629134,-150.0,0.00038776,8]
[314430636,1708337679472,88.741802,0.000386,10]
[314430641,1708337867394,150.0,0.00025,3]
[314430642,1708337867418,150.0,0.00025,3]
[314430643,1708337867443,150.0,0.00025,3]
[314430644,1708337867464,100.0,0.00025,3]
[314430645,1708337878545,220.74131635,0.00026229,2]
[314430646,1708337921680,150.0,0.00026361,2]
[314430647,1708337921701,150.0,0.00026361,2]
[314430648,1708337921722,150.0,0.00026361,2]
[314430649,1708337921742,150.0,0.00026361,2]
[314430650,1708337921761,150.0,0.00026361,2]
[314430651,1708337921781,150.0,0.00026361,2]
[314430652,1708337921801,150.0,0.00026361,2]
[314430653,1708337921820,150.0,0.00026361,2]
[314430654,1708337921839,150.0,0.00026361,2]
[314430655,1708337921860,150.0,0.00026361,2]
[314430656,1708337921881,150.0,0.00026361,2]
[314430657,1708337921902,150.0,0.00026361,2]
[314430658,1708337921922,150.0,0.00026361,2]
[314430659,1708337921942,52.88689611,0.00026361,2]
[314430660,1708337971006,150.0,0.00026229,2]
[314430661,1708337971031,50.0,0.00026229,2]
[314430662,1708338267944,155.48828253,0.00022,2]
[314430664,1708338554144,-600.0,0.00027,3]
[314430665,1708338554163,-909.07266442,0.00033299,2]
[314430666,1708338554185,-153.72760951,0.000333,2]
[314430667,1708338554204,-443.72378348,0.000334,2]
[314430668,1708338563097,-1260.27621652,0.000334,2]
[314430669,1708338563117,-356.03096819,0.000334,2]
[314430670,1708338564073,-10297.52,0.000334,2]
[314430677,1708338631429,-8.44903181,0.000334,2]
[314430678,1708338631439,-155.0,0.00035019,4]
[314430679,1708338631450,-153.72760951,0.0003502,2]
[314430680,1708338631463,-150.1,0.00036306,2]
[314430681,1708338631472,-433.47710607,0.00036396,2]
[314430682,1708338631486,-154.69289393,0.00036396,2]
[314430683,1708338631495,-153.72760951,0.0003674,2]
[314430684,1708338631505,-80.80359791,0.00037307,2]
[314430685,1708338631757,-86.18608809,0.00037307,2]
[314430686,1708338631767,-365.20958338,0.00037999,7]
[314430687,1708338631779,-334.79041662,0.00037999,7]
[314430688,1708338631788,-173.68920451,0.00038,10]
[314430689,1708338631809,-1095.170656,0.00038,10]
[314430690,1708338631819,-23900.0,0.00038144,2]
[314430691,1708338631829,-1311.68,0.00038159,2]
[314430692,1708338631839,-250.0,0.00038175,2]
[314430693,1708338631848,-200.0,0.00038216,2]
[314430694,1708338631857,-265.69,0.00038217,2]
[314430695,1708338631867,-1627.29,0.00038239,2]
[314430696,1708338631877,-166.989686,0.0003824,2]
[314430697,1708338631887,-500.0,0.0003829,2]
[314430698,1708338631897,-373.67,0.00038319,2]
[314430699,1708338631906,-349.88,0.00038354,2]
[314430700,1708338631916,-150.0,0.00038356,2]
[314430701,1708338631925,-200.0,0.00038364,2]
[314430702,1708338631935,-567.42,0.00038378,2]
[314430703,1708338631945,-250.0,0.00038407,111]
[314430704,1708338631954,-2000.0,0.00038449,2]
[314430705,1708338631963,-150.0,0.00038454,4]
[314430706,1708338631973,-500.0,0.00038455,2]
[314430707,1708338631983,-281.01,0.00038455,15]
[314430708,1708338631992,-909.07266442,0.00038458,5]
[314430710,1708338632001,-16341.61515258,0.00038459,14]
[314430711,1708338632011,-817.08075763,0.00038459,12]
[314430712,1708338632020,-150.99,0.00038459,2]
[314430714,1708338632029,-153.72760951,0.0003846,2]
[314430716,1708338632039,-1000.0,0.00038497,2]
[314430717,1708338632048,-1852.42,0.00038498,2]
[314430720,1708338632058,-162.9,0.00038554,2]
[314430721,1708338632067,-500.0,0.00038563,2]
[314430724,1708338632077,-13615.33,0.000386,10]
[314430726,1708338632086,-588.17,0.0003866,2]
[314430728,1708338632095,-2705.0,0.0003866,120]
[314430730,1708338632105,-4530.52582018,0.00038776,8]
[314430732,1708338632115,-259.85476795,0.00038776,7]
[314430734,1708338632125,-499.99,0.00038776,2]
[314430736,1708338632134,-192.09136296,0.00038776,7]
[314430738,1708338632144,-3682.0334,0.000388,2]
[314430740,1708338632154,-264.97930969,0.00038899,120]
[314430741,1708338632163,-1465.64,0.000389,3]
[314430742,1708338632173,-1465.64,0.000389,3]
[314430743,1708338632182,-1465.64,0.000389,3]
[314430744,1708338632191,-1465.64,0.000389,3]
[314430745,1708338632204,-1465.64,0.000389,3]
[314430746,1708338632213,-1465.64,0.000389,3]
[314430747,1708338632223,-1465.64,0.000389,3]
[314430748,1708338632232,-1465.64,0.000389,3]
[314430749,1708338632243,-1465.64,0.000389,3]
[314430750,1708338632253,-1465.64,0.000389,3]
[314430751,1708338632262,-1465.64,0.000389,3]
[314430752,1708338632272,-1465.64,0.000389,3]
[314430753,1708338632281,-1465.64,0.000389,3]
[314430754,1708338632291,-1465.64,0.000389,3]
[314430755,1708338632300,-1465.64,0.000389,3]
[314430756,1708338632310,-1465.64,0.000389,3]
[314430757,1708338632319,-1465.64,0.000389,3]
[314430758,1708338632328,-1465.64,0.000389,3]
[314430759,1708338632338,-1465.64,0.000389,3]
[314430760,1708338632347,-1465.64,0.000389,3]
[314430761,1708338632356,-152.79,0.000389,3]
[314430762,1708338632366,-152.79,0.000389,3]
[314430763,1708338632375,-152.79,0.000389,3]
[314430764,1708338632384,-152.79,0.000389,3]
[314430765,1708338632393,-2982.68,0.00038927,2]
[314430766,1708338632403,-162.9,0.00038956,2]
[314430767,1708338632412,-340.80193672,0.000391,2]
[314430768,1708338632421,-211.258198,0.00039135,7]
[314430769,1708338632431,-166.989686,0.00039173,2]
[314430770,1708338632442,-150.0,0.00039186,2]
[314430771,1708338632454,-353.48,0.0003926,2]
[314430772,1708338632463,-10284.705,0.00039265,2]
[314430773,1708338632473,-626.33,0.00039339,2]
[314430774,1708338632483,-162.9,0.00039358,2]
[314430775,1708338632493,-150.0,0.00039368,2]
[314430776,1708338632502,-211.258198,0.00039719,7]
[314430777,1708338632511,-1101.87,0.00039746,2]
[314430778,1708338632521,-7500.0,0.0003975,4]
[314430779,1708338632531,-162.9,0.00039759,2]
[314430780,1708338632541,-162.41,0.00039974,2]
[314430781,1708338632551,-491.51376351,0.0004,4]
[314430782,1708338632565,-246.68512293,0.0004,15]
[314430783,1708338632575,-255.0,0.0004,12]
[314430784,1708338632585,-255.0,0.0004,12]
[314430785,1708338632594,-255.0,0.0004,12]
[314430786,1708338632604,-255.0,0.0004,12]
[314430787,1708338632614,-402.99128688,0.0004,12]
[314430788,1708338632623,-1000.0,0.0004,10]
[314430789,1708338632633,-1000.0,0.0004,10]
[314430790,1708338632642,-1015.0,0.0004,10]
[314430791,1708338632652,-1000.0,0.0004,10]
[314430792,1708338632661,-1000.0,0.0004,10]
[314430793,1708338632671,-567.42,0.00040021,2]
[314430794,1708338632681,-265.69,0.00040127,2]
[314430795,1708338632692,-162.9,0.00040161,2]
[314430796,1708338632703,-153.72760951,0.0004018,2]
[314430797,1708338632712,-211.258198,0.00040303,7]
[314430798,1708338632722,-1879.7351,0.00040315,2]
[314430799,1708338632732,-845.82434359,0.00040356,2]
[314430800,1708338632741,-176.0304504,0.00040356,2]
[314430801,1708338632750,-1000.0,0.00040356,2]
[314430802,1708338632760,-150.0,0.00040379,2]
[314430803,1708338632769,-11349.31395414,0.00040415,2]
[314430804,1708338632778,-1000.0,0.00040456,30]
[314430805,1708338632788,-1085.0,0.00040456,120]
[314430806,1708338632797,-2357.8794,0.00040456,7]
[314430807,1708338632807,-209.03611046,0.00040456,120]
[314430808,1708338632816,-20000.0,0.00040456,2]
[314430809,1708338632825,-711.21686559,0.00040456,120]
[314430810,1708338632834,-151.0,0.00040456,30]
[314430811,1708338632843,-1586.356122,0.00040456,30]
[314430812,1708338632852,-1281.303789,0.00040456,2]
[314430813,1708338632861,-9617.0,0.00040456,7]
[314430814,1708338632871,-7000.0,0.00040456,47]
[314430815,1708338632881,-274.41136,0.00040456,14]
[314430816,1708338632891,-1344.22764209,0.00040456,8]
[314430817,1708338632901,-654.41804143,0.00040456,120]
[314430818,1708338632910,-153.30983069,0.00040456,60]
[314430819,1708338632920,-1007.053,0.00040499,2]
[314430820,1708338632929,-162.9,0.00040563,2]
[314430821,1708338632938,-658.5957,0.00040564,2]
[314430822,1708338632947,-1459.7906,0.00040564,2]
[314430823,1708338632956,-353.48,0.00040733,2]
[314430824,1708338632966,-211.258198,0.00040888,7]
[314430825,1708338632975,-588.17,0.00040924,2]
[314430826,1708338632985,-1390.66025847,0.0004098,2]
[314430827,1708338632994,-177.53,0.00040988,2]
[314430828,1708338633003,-150.0,0.00040998,2]
[314430829,1708338633013,-393.0,0.00041,14]
[314430830,1708338633022,-20000.0,0.00041,3]
[314430831,1708338633031,-250.0,0.00041,2]
[314430832,1708338633040,-250.0,0.00041274,2]
[314430833,1708338633050,-845.82434352,0.00041305,3]
[314430834,1708338633059,-162.41,0.00041307,2]
[314430835,1708338633068,-393.0,0.0004137,90]
[314430836,1708338633077,-1084.987,0.0004137,2]
[314430837,1708338633087,-150.0,0.00041391,2]
[314430838,1708338633097,-177.53,0.00041536,2]
[314430839,1708338633106,-150.0,0.00041546,2]
[314430840,1708338633115,-250.0,0.00041548,2]
[314430841,1708338633124,-255.0,0.00041607,12]
[314430842,1708338633134,-150.0,0.00041625,2]
[314430843,1708338633143,-150.0,0.00041638,2]
[314430844,1708338633153,-567.42,0.00041665,2]
[314430845,1708338633162,-282.0,0.0004169,2]
[314430846,1708338633171,-584.79761855,0.0004179,10]
[314430847,1708338633181,-4353.2125,0.000418,2]
[314430848,1708338633190,-500.0,0.000418,2]
[314430849,1708338633201,-1223.3964,0.000418,2]
[314430850,1708338633211,-6293.933,0.000418,2]
[314430851,1708338633220,-1000.0,0.000418,2]
[314430852,1708338633229,-17859.9158,0.000418,2]
[314430853,1708338633238,-12401.4746,0.000418,2]
[314430854,1708338633248,-7771.9711,0.000418,2]
[314430855,1708338633257,-2435.2123,0.000418,2]
[314430856,1708338633266,-691.57409518,0.000418,14]
[314430857,1708338633275,-176.54488879,0.000418,2]
[314430858,1708338633284,-150.0,0.00041817,30]
[314430859,1708338633293,-365.77012968,0.00041822,2]
[314430860,1708338633302,-402.73745028,0.0004188,11]
[314430861,1708338633312,-4273.86541895,0.0004189,16]
[314430862,1708338633321,-154.421242,0.0004189,13]
[314430863,1708338633330,-4027.3745028,0.0004189,11]
[314430864,1708338633339,-89720.7097221,0.0004189,8]
[314430865,1708338633348,-1905.0,0.0004189,2]
[314430866,1708338633357,-1809.0,0.0004189,3]
[314430867,1708338633367,-5929.9481023,0.00041897,2]
[314430868,1708338633376,-173.37043273,0.00041898,5]
[314430869,1708338633385,-2404.45500184,0.000419,4]
[314430870,1708338633394,-245000.0,0.000419,2]
[314430871,1708338633403,-248.6502004,0.000419,4]
[314430872,1708338633412,-39520.9697,0.000419,2]
[314430873,1708338633421,-100000.0,0.000419,2]
[314430874,1708338633430,-322.4877,0.000419,2]
[314430875,1708338633439,-465.8175,0.000419,2]
[314430876,1708338633449,-2000.0,0.000419,7]
[314430877,1708338633458,-200.0,0.000419,7]
[314430878,1708338633467,-153.72760951,0.000419,2]
[314430879,1708338633477,-5000.0,0.000419,3]
[314430880,1708338633486,-562.42352,0.000419,11]
[314430881,1708338633496,-444.86890668,0.000419,2]
[314430882,1708338633506,-7890.35697106,0.000419,2]
[314430883,1708338633515,-208.81089753,0.000419,8]
[314430884,1708338633524,-1168.17114778,0.000419,2]
[314430885,1708338633534,-677.8178494,0.000419,2]
[314430886,1708338633544,-1974.39892261,0.000419,2]
[314430887,1708338633555,-562.42352,0.0004193,11]
[314430888,1708338633565,-562.42352,0.0004193,11]
[314430889,1708338633575,-190.0,0.0004194,30]
[314430890,1708338633585,-562.42353,0.0004194,11]
[314430891,1708338633595,-190.0,0.0004195,30]
[314430892,1708338633605,-190.0,0.0004196,30]
[314430893,1708338633614,-562.42352,0.0004198,11]
[314430894,1708338633624,-89720.7097221,0.0004199,8]
[314430895,1708338633634,-448603.548611,0.0004199,8]
[314430896,1708338633645,-65946.89940749,0.00041998,30]
[314430897,1708338633654,-250.0,0.00041999,2]
[314430898,1708338633664,-100000.0,0.00042,22]
[314430899,1708338633674,-723155.49613688,0.00042,4]
[314430900,1708338633683,-1137.4579434,0.00042,30]
[314430901,1708338633693,-1287.3593,0.00042,59]
[314430902,1708338633704,-1214.55938311,0.00042,30]
[314430903,1708338633715,-289.91250847,0.00042,30]
[314430904,1708338633725,-150.0,0.00042,2]
[314430905,1708338633734,-309.41428571,0.00042,2]
[314430906,1708338633743,-491.02698334,0.00042,2]
[314430907,1708338633752,-500.0,0.00042,3]
[314430908,1708338633762,-113398.0,0.00042,30]
[314430909,1708338633772,-200.0,0.00042,2]
[314430910,1708338633781,-8957.66079397,0.00042,2]
[314430911,1708338633958,-5604.82710049,0.00042,2]
[314430912,1708338637391,-909.07266442,0.00036305,5]
[314430913,1708338637401,-150.0,0.000391,2]
[314430914,1708338637411,-1000.0,0.000412,5]
[314430915,1708338637422,-150.0,0.00041503,2]
[314430916,1708338637432,-150.0,0.00041585,2]
[314430917,1708338637441,-430.13123328,0.000419,2]
[314430918,1708338637567,-784.66695034,0.000419,2]
[314430919,1708338637577,-44131.01850844,0.0004199,3]
[314430920,1708338637589,-7412.53350805,0.00042,2]
[314430921,1708338637599,-5000.0,0.00042,7]
[314430922,1708338637609,-200.0,0.00042,2]
[314430923,1708338637618,-1000.0,0.00042,7]
[314430924,1708338637628,-562.42352,0.0004201,11]
[314430925,1708338637642,-265.69,0.00042038,2]
[314430926,1708338637651,-177.53,0.00042084,2]
[314430927,1708338637661,-150.0,0.00042094,2]
[314430928,1708338637671,-180.0,0.00042111,2]
[314430929,1708338637680,-281.01,0.00042191,15]
[314430930,1708338637689,-353.48,0.00042205,2]
[314430931,1708338637699,-845.82434352,0.00042255,4]
[314430932,1708338637712,-2121.98510024,0.000423,3]
[314430933,1708338637722,-2000.0,0.00042319,7]
[314430934,1708338637734,-200.0,0.00042319,7]
[314430935,1708338637744,-150.0,0.00042403,2]
[314430936,1708338637755,-4273.86541892,0.00042436,17]
[314430937,1708338637765,-500.0,0.00042466,7]
[314430938,1708338637776,-352.78,0.0004252,2]
[314430939,1708338637786,-500.0,0.00042547,2]
[314430940,1708338637796,-200.0,0.000426,17]
[314430941,1708338637806,-353.67,0.00042632,2]
[314430942,1708338637815,-162.41,0.00042639,2]
[314430943,1708338637824,-500.0,0.00042661,7]
[314430944,1708338637834,-584.79761852,0.00042663,10]
[314430945,1708338637843,-2434.60377005,0.000427,120]
[314430946,1708338637853,-2000.0,0.00042742,7]
[314430947,1708338637862,-200.0,0.00042742,7]
[314430948,1708338637871,-373.3604994,0.000428,5]
[314430949,1708338637880,-500.0,0.00042857,7]
[314430950,1708338637889,-152.06641792,0.000429,17]
[314430951,1708338637898,-4273.86541892,0.00042983,17]
[314430952,1708338637908,-100000.0,0.00043,23]
[314430953,1708338637917,-464.13188602,0.00043,43]
[314430954,1708338637926,-1100.67177155,0.00043,2]
[314430955,1708338637935,-500.0,0.00043,7]
[314430956,1708338637945,-500.0,0.00043,3]
[314430957,1708338637955,-600.0,0.00043,3]
[314430958,1708338637964,-1465.64,0.00043,4]
[314430959,1708338637975,-1465.64,0.00043,4]
[314430960,1708338637985,-1465.64,0.00043,4]
[314430961,1708338637995,-1465.64,0.00043,4]
[314430962,1708338638005,-1465.64,0.00043,4]
[314430963,1708338638015,-1465.64,0.00043,4]
[314430964,1708338638024,-1465.64,0.00043,4]
[314430965,1708338638034,-1465.64,0.00043,4]
[314430966,1708338638043,-1465.64,0.00043,4]
[314430967,1708338638052,-1465.64,0.00043,4]
[314430968,1708338638062,-1465.64,0.00043,4]
[314430969,1708338638071,-1465.64,0.00043,4]
[314430970,1708338638081,-1465.64,0.00043,4]
[314430971,1708338638090,-1465.64,0.00043,4]
[314430972,1708338638100,-1465.64,0.00043,4]
[314430973,1708338638109,-1465.64,0.00043,4]
[314430974,1708338638118,-1465.64,0.00043,4]
[314430975,1708338638128,-1465.64,0.00043,4]
[314430976,1708338638137,-1465.64,0.00043,4]
[314430977,1708338638147,-1465.64,0.00043,4]
[314430978,1708338638156,-500.0,0.00043,7]
[314430979,1708338638166,-152.79,0.00043,4]
[314430980,1708338638175,-152.79,0.00043,4]
[314430981,1708338638185,-152.79,0.00043,4]
[314430982,1708338638194,-152.79,0.00043,4]
[314430983,1708338638204,-152.79,0.00043,4]
[314430984,1708338638214,-152.79,0.00043,4]
[314430985,1708338638223,-152.79,0.00043,4]
[314430986,1708338638232,-152.79,0.00043,4]
[314430987,1708338638241,-208.0,0.00043009,10]
[314430988,1708338638251,-10947.48,0.00043014,2]
[314430989,1708338638260,-500.0,0.00043053,7]
[314430990,1708338638270,-750.0,0.00043095,2]
[314430991,1708338638279,-151.0,0.00043103,2]
[314430992,1708338638289,-250.49088,0.00043103,2]
[314430993,1708338638298,-373.67,0.00043109,2]
[314430994,1708338638308,-393.0,0.00043151,90]
[314430995,1708338638317,-200.0,0.0004317,7]
[314430996,1708338638326,-588.17,0.00043187,2]
[314430997,1708338638335,-845.82434352,0.00043204,5]
[314430998,1708338638344,-741.38526417,0.00043248,2]
[314430999,1708338638353,-500.0,0.00043249,7]
[314431000,1708338638362,-567.42,0.00043309,2]
[314431001,1708338638371,-150.0,0.00043414,2]
[314431002,1708338638381,-500.0,0.00043444,7]
[314431003,1708338638390,-4273.86541892,0.00043529,18]
[314431004,1708338638399,-584.79761852,0.00043536,11]
[314431005,1708338638408,-200.0,0.000436,18]